lending/lending_fUSD_20241007
["ID","MTS","AMOUNT","RATE_DAILY","PERIOD"]
[339999958,1728306645310,-500.0,0.00036986,2]
[339999959,1728306645320,-500.0,0.00036986,2]
[339999960,1728306645330,-500.0,0.00036986,2]
[339999961,1728306645340,-500.0,0.00036986,2]
[339999962,1728306645351,-500.0,0.00036986,5]
[339999963,1728306645360,-500.0,0.00036986,2]
[339999964,1728306645369,-502.57526007,0.00036986,2]
[339999965,1728306645379,-500.0,0.00036986,2]
[339999966,1728306645388,-500.0,0.00036986,2]
[339999967,1728306645398,-500.0,0.00036986,2]
[339999968,1728306645408,-500.0,0.00036986,2]
[339999969,1728306645417,-500.0,0.00036986,2]
[339999970,1728306645427,-500.0,0.00036986,2]
[339999971,1728306645436,-500.0,0.00036986,2]
[339999972,1728306645446,-500.0,0.00036986,2]
[339999973,1728306645455,-500.0,0.00036986,2]
[339999974,1728306645465,-362.48615407,0.00036986,2]
[339999975,1728306645474,-500.0,0.00036986,2]
[339999976,1728306645484,-500.0,0.00036986,2]
[339999977,1728306645494,-500.0,0.00036986,2]
[339999978,1728306645504,-500.0,0.00036986,2]
[339999979,1728306645513,-500.0,0.00036986,2]
[339999980,1728306645523,-500.0,0.00036986,2]
[339999981,1728306645532,-500.0,0.00036986,2]
[339999982,1728306645542,-500.0,0.00036986,2]
[339999983,1728306645552,-500.0,0.00036986,2]
[339999984,1728306645562,-653.17,0.00036986,2]
[339999985,1728306645571,-500.0,0.00036986,2]
[339999986,1728306645581,-500.0,0.00036986,2]
[339999987,1728306645590,-500.0,0.00036986,2]
[339999988,1728306645600,-500.0,0.00036986,2]
[339999989,1728306645609,-2110.0,0.00037,2]
[339999990,1728306645618,-158.1635669,0.00037214,2]
[339999991,1728306645628,-500.0,0.00037242,3]
[339999992,1728306645638,-500.0,0.00037251,3]
[339999993,1728306645647,-500.0,0.00037251,3]
[339999994,1728306645657,-500.0,0.0003726,3]
[339999995,1728306645666,-500.0,0.0003726,3]
[339999996,1728306645676,-500.0,0.0003726,2]
[339999997,1728306645685,-500.0,0.0003726,2]
[339999998,1728306645694,-517.0870224,0.0003726,2]
[339999999,1728306645703,-500.0,0.0003726,2]
[340000000,1728306645713,-500.0,0.0003726,2]
[340000001,1728306645722,-500.0,0.0003726,2]
[340000002,1728306645731,-500.0,0.0003726,2]
[340000003,1728306645741,-1037.49,0.0003726,2]
[340000004,1728306645750,-500.0,0.0003726,2]
[340000005,1728306645760,-150.0,0.0003726,2]
[340000006,1728306645769,-500.0,0.0003726,2]
[340000007,1728306645778,-500.0,0.0003726,2]
[340000008,1728306645787,-500.0,0.0003726,2]
[340000009,1728306645799,-500.0,0.0003726,2]
[340000010,1728306645808,-500.0,0.0003726,2]
[340000011,1728306645818,-500.0,0.0003726,2]
[340000012,1728306645827,-500.0,0.0003726,2]
[340000013,1728306645836,-500.0,0.0003726,2]
[340000014,1728306645846,-500.0,0.0003726,2]
[340000015,1728306645855,-500.0,0.0003726,2]
[340000016,1728306645865,-500.0,0.0003726,2]
[340000017,1728306645875,-500.0,0.0003726,5]
[340000018,1728306645884,-500.0,0.0003726,2]
[340000019,1728306645894,-500.0,0.0003726,2]
[340000020,1728306645903,-500.0,0.0003726,2]
[340000021,1728306645912,-571.67668291,0.0003726,2]
[340000022,1728306645922,-500.0,0.0003726,2]
[340000023,1728306645931,-489.2463303,0.0003726,2]
[340000024,1728306645941,-500.0,0.0003726,2]
[340000025,1728306645950,-500.0,0.0003726,2]
[340000026,1728306645960,-500.0,0.0003726,2]
[340000027,1728306645969,-546.63037105,0.0003726,2]
[340000028,1728306645979,-500.0,0.0003726,2]
[340000029,1728306645989,-620.44996791,0.0003726,2]
[340000030,1728306645998,-500.0,0.0003726,2]
[340000031,1728306646008,-500.0,0.0003726,2]
[340000032,1728306646017,-500.0,0.0003726,2]
[340000033,1728306646027,-500.0,0.0003726,2]
[340000034,1728306646037,-500.0,0.0003726,2]
[340000035,1728306646050,-501.36496675,0.0003726,2]
[340000036,1728306646060,-500.0,0.0003726,2]
[340000037,1728306646069,-653.17,0.0003726,2]
[340000038,1728306646078,-500.0,0.0003726,2]
[340000039,1728306646088,-500.0,0.0003726,2]
[340000040,1728306646097,-500.0,0.0003726,2]
[340000041,1728306646106,-500.0,0.0003726,2]
[340000042,1728306646115,-2110.0,0.000375,2]
[340000043,1728306646124,-201.0,0.0003753,2]
[340000044,1728306646135,-500.0,0.00037534,2]
[340000045,1728306646145,-500.0,0.00037534,2]
[340000046,1728306646155,-500.0,0.00037534,2]
[340000047,1728306646163,-500.0,0.00037534,2]
[340000048,1728306646173,-500.0,0.00037534,2]
[340000050,1728306646182,-500.0,0.00037534,2]
[340000052,1728306646191,-1037.49,0.00037534,2]
[340000054,1728306646201,-500.0,0.00037534,2]
[340000056,1728306646210,-150.0,0.00037534,2]
[340000058,1728306646220,-395.69645223,0.00037534,2]
[340000060,1728306646229,-500.0,0.00037534,2]
[340000062,1728306646238,-500.0,0.00037534,2]
[340000074,1728306646355,-274.50478312,0.00037534,2]
[340000076,1728306646366,-500.0,0.00037534,2]
[340000078,1728306646375,-500.0,0.00037534,2]
[340000080,1728306646385,-607.1419268,0.00037534,2]
[340000082,1728306646394,-500.0,0.00037534,2]
[340000084,1728306646404,-500.0,0.00037534,2]
[340000086,1728306646414,-500.0,0.00037534,2]
[340000088,1728306646424,-295.10926557,0.00037534,2]
[340000090,1728306646435,-500.0,0.00037534,5]
[340000092,1728306646444,-500.0,0.00037534,2]
[340000094,1728306646453,-500.0,0.00037534,2]
[340000096,1728306646462,-500.0,0.00037534,2]
[340000098,1728306646472,-500.0,0.00037534,2]
[340000099,1728306646482,-500.0,0.00037534,2]
[340000101,1728306646491,-582.03496208,0.00037534,2]
[340000103,1728306646501,-268.59508771,0.00037534,2]
[340000105,1728306646510,-500.0,0.00037534,2]
[340000107,1728306646520,-374.72733119,0.00037534,2]
[340000109,1728306646529,-500.0,0.00037534,2]
[340000111,1728306646538,-500.0,0.00037534,2]
[340000113,1728306646549,-268.12412838,0.00037534,2]
[340000115,1728306646559,-500.0,0.00037534,2]
[340000117,1728306646569,-487.49568499,0.00037534,2]
[340000119,1728306646579,-653.17,0.00037534,2]
[340000120,1728306646588,-500.0,0.00037534,2]
[340000121,1728306646598,-500.0,0.00037534,2]
[340000123,1728306646608,-329.15633401,0.00037534,2]
[340000125,1728306646618,-500.0,0.00037534,2]
[340000127,1728306646627,-215.05,0.00037698,120]
[340000129,1728306646637,-500.0,0.00037808,2]
[340000130,1728306646646,-500.0,0.00037808,2]
[340000131,1728306646656,-500.0,0.00037808,2]
[340000132,1728306646665,-323.68119782,0.00037808,2]
[340000133,1728306646675,-500.0,0.00037808,2]
[340000134,1728306646684,-500.0,0.00037808,2]
[340000135,1728306646694,-1037.49,0.00037808,2]
[340000136,1728306646703,-500.0,0.00037808,2]
[340000137,1728306646712,-150.0,0.00037808,2]
[340000138,1728306646722,-500.0,0.00037808,2]
[340000139,1728306646731,-500.0,0.00037808,2]
[340000140,1728306646740,-500.0,0.00037808,2]
[340000141,1728306646749,-500.0,0.00037808,2]
[340000142,1728306646759,-500.0,0.00037808,2]
[340000143,1728306646768,-212.68632678,0.00037808,2]
[340000144,1728306646778,-500.0,0.00037808,2]
[340000145,1728306646788,-500.0,0.00037808,5]
[340000146,1728306646798,-335.08747516,0.00037808,2]
[340000147,1728306646808,-500.0,0.00037808,2]
[340000148,1728306646818,-419.24729985,0.00037808,2]
[340000149,1728306646827,-252.51645712,0.00037808,2]
[340000150,1728306646836,-500.0,0.00037808,2]
[340000151,1728306646845,-500.0,0.00037808,2]
[340000152,1728306646855,-500.0,0.00037808,2]
[340000153,1728306646864,-500.0,0.00037808,2]
[340000154,1728306646873,-500.0,0.00037808,2]
[340000155,1728306646883,-653.17,0.00037808,2]
[340000156,1728306646892,-500.0,0.00037808,2]
[340000157,1728306646901,-500.0,0.00037808,2]
[340000158,1728306646911,-609.46192043,0.00037808,2]
[340000159,1728306646922,-2110.0,0.00038,2]
[340000160,1728306646931,-1005.0,0.00038,13]
[340000161,1728306646940,-500.0,0.00038082,120]
[340000162,1728306646949,-306.27159792,0.00038082,120]
[340000163,1728306646958,-500.0,0.00038082,120]
[340000164,1728306646968,-500.0,0.00038082,120]
[340000165,1728306646977,-500.0,0.00038082,30]
[340000166,1728306646987,-1037.49,0.00038082,120]
[340000167,1728306646996,-500.0,0.00038082,14]
[340000168,1728306647006,-150.0,0.00038082,120]
[340000169,1728306647015,-433.55048182,0.00038082,120]
[340000170,1728306647025,-500.0,0.00038082,120]
[340000171,1728306647034,-500.0,0.00038082,120]
[340000172,1728306647048,-500.0,0.00038082,120]
[340000173,1728306647058,-359.95121814,0.00038082,120]
[340000174,1728306647068,-495.25482895,0.00038082,120]
[340000175,1728306647078,-500.0,0.00038082,5]
[340000176,1728306647089,-500.0,0.00038082,120]
[340000177,1728306647099,-597.48774418,0.00038082,120]
[340000178,1728306647108,-500.0,0.00038082,120]
[340000179,1728306647117,-500.0,0.00038082,120]
[340000180,1728306647128,-500.0,0.00038082,120]
[340000181,1728306647138,-500.0,0.00038082,120]
[340000182,1728306647147,-653.17,0.00038082,120]
[340000183,1728306647157,-500.0,0.00038082,120]
[340000184,1728306647166,-500.0,0.00038082,120]
[340000185,1728306647176,-559.97,0.00038118,2]
[340000186,1728306647185,-500.0,0.00038345,2]
[340000187,1728306647194,-500.0,0.00038356,120]
[340000188,1728306647204,-500.0,0.00038356,120]
[340000189,1728306647214,-500.0,0.00038356,120]
[340000190,1728306647223,-500.0,0.00038356,30]
[340000191,1728306647232,-1037.49,0.00038356,120]
[340000192,1728306647242,-500.0,0.00038356,14]
[340000193,1728306647251,-150.0,0.00038356,120]
[340000194,1728306647260,-500.0,0.00038356,120]
[340000195,1728306647270,-193.3812808,0.00038356,120]
[340000196,1728306647279,-500.0,0.00038356,120]
[340000197,1728306647289,-415.78,0.00038356,5]
[340000198,1728306647298,-430.94239431,0.00038356,120]
[340000199,1728306647307,-500.0,0.00038356,120]
[340000200,1728306647316,-500.0,0.00038356,120]
[340000201,1728306647326,-500.0,0.00038356,120]
[340000202,1728306647335,-500.0,0.00038356,120]
[340000203,1728306647345,-653.17,0.00038356,120]
[340000204,1728306647357,-601.58389422,0.00038356,120]
[340000205,1728306647369,-500.0,0.00038356,120]
[340000206,1728306647384,-2110.0,0.000385,2]
[340000207,1728306647397,-500.0,0.0003863,120]
[340000208,1728306647408,-515.36781513,0.0003863,120]
[340000209,1728306647418,-500.0,0.0003863,120]
[340000210,1728306647429,-500.0,0.0003863,30]
[340000211,1728306647441,-1037.49,0.0003863,120]
[340000212,1728306647453,-500.0,0.0003863,14]
[340000213,1728306647465,-263.89704942,0.0003863,120]
[340000214,1728306647478,-500.0,0.0003863,120]
[340000215,1728306647491,-500.0,0.0003863,120]
[340000216,1728306647503,-413.96547414,0.0003863,120]
[340000217,1728306647515,-500.0,0.0003863,120]
[340000218,1728306647525,-251.71912976,0.0003863,120]
[340000219,1728306647537,-500.0,0.0003863,120]
[340000220,1728306647548,-653.17,0.0003863,120]
[340000221,1728306647558,-500.0,0.0003863,120]
[340000222,1728306647569,-925.98627742,0.000389,30]
[340000223,1728306647582,-500.0,0.00038904,120]
[340000224,1728306647593,-436.5166542,0.00038904,120]
[340000225,1728306647605,-500.0,0.00038904,30]
[340000226,1728306647616,-1037.49,0.00038904,120]
[340000227,1728306647628,-500.0,0.00038904,14]
[340000228,1728306647640,-500.0,0.00038904,120]
[340000229,1728306647652,-374.34995966,0.00038904,120]
[340000230,1728306647665,-500.0,0.00038904,120]
[340000231,1728306647676,-387.2322354,0.00038904,120]
[340000232,1728306647688,-653.17,0.00038904,120]
[340000233,1728306647701,-500.0,0.00038904,120]
[340000234,1728306647712,-482.63202156,0.00038988,120]
[340000235,1728306647724,-50000.0,0.00039,39]
[340000236,1728306647735,-2110.0,0.00039,2]
[340000237,1728306647747,-2005.93351714,0.00039,120]
[340000238,1728306647757,-500.0,0.00039,120]
[340000239,1728306647769,-50000.0,0.00039,7]
[340000240,1728306647781,-500.0,0.00039178,120]
[340000241,1728306647793,-381.22351133,0.00039178,30]
[340000242,1728306647806,-1037.49,0.00039178,120]
[340000243,1728306647817,-500.0,0.00039178,14]
[340000244,1728306647829,-500.0,0.00039178,120]
[340000245,1728306647839,-500.0,0.00039178,120]
[340000246,1728306647848,-653.17,0.00039178,120]
[340000247,1728306647859,-201.18316744,0.00039178,120]
[340000248,1728306647869,-500.0,0.00039452,120]
[340000249,1728306647881,-1037.49,0.00039452,120]
[340000250,1728306647895,-500.0,0.00039452,14]
[340000251,1728306647905,-514.83923679,0.00039452,120]
[340000252,1728306647915,-332.32043996,0.00039452,120]
[340000253,1728306647925,-653.17,0.00039452,120]
[340000254,1728306647935,-2110.0,0.000395,2]
[340000255,1728306647946,-153.21512405,0.0003965,2]
[340000256,1728306647958,-500.0,0.00039726,120]
[340000257,1728306647970,-1037.49,0.00039726,120]
[340000258,1728306647980,-500.0,0.00039726,14]
[340000259,1728306647990,-653.17,0.00039726,120]
[340000260,1728306648000,-158.1635669,0.00039736,2]
[340000261,1728306648010,-348.1,0.000399,7]
[340000262,1728306648021,-9207.17052934,0.000399,2]
[340000263,1728306648032,-229.49577801,0.000399,2]
[340000264,1728306648045,-2098.0365021,0.00039973,2]
[340000265,1728306648056,-2237.1079357,0.00039973,2]
[340000266,1728306648066,-1181.4472203,0.00039973,2]
[340000267,1728306648077,-1259.761186,0.00039973,2]
[340000268,1728306648087,-4553.568212,0.00039973,2]
[340000269,1728306648099,-4855.4081745,0.00039973,2]
[340000270,1728306648109,-2638.020911,0.0003998,10]
[340000271,1728306648120,-2761.99164635,0.0003999,7]
[340000272,1728306648130,-50000.0,0.0004,30]
[340000273,1728306648141,-50000.0,0.0004,40]
[340000274,1728306648151,-947.8533,0.0004,2]
[340000275,1728306648162,-2110.0,0.0004,2]
[340000276,1728306648172,-3000.0,0.0004,2]
[340000277,1728306648183,-2512099.36,0.0004,90]
[340000278,1728306648193,-1000.0,0.0004,2]
[340000279,1728306648203,-5000.0,0.0004,120]
[340000280,1728306648214,-1000.0,0.0004,33]
[340000281,1728306648225,-533.80810222,0.0004,120]
[340000282,1728306648236,-2000.0,0.0004,120]
[340000283,1728306648246,-1000.0,0.0004,120]
[340000284,1728306648257,-7162.89554694,0.0004,30]
[340000285,1728306648268,-159.0,0.0004,120]
[340000286,1728306648279,-2694.94,0.0004,14]
[340000287,1728306648289,-500.0,0.0004,120]
[340000288,1728306648300,-500.0,0.0004,14]
[340000289,1728306648312,-1037.49,0.0004,120]
[340000290,1728306648323,-151.0,0.0004,14]
[340000291,1728306648335,-151.0,0.0004,14]
[340000292,1728306648346,-151.0,0.0004,14]
[340000293,1728306648356,-151.0,0.0004,14]
[340000294,1728306648367,-653.17,0.0004,120]
[340000295,1728306648377,-152.99,0.00040042,2]
[340000296,1728306648388,-150.0,0.0004025,120]
[340000297,1728306648399,-500.0,0.00040273,120]
[340000298,1728306648410,-500.0,0.00040273,14]
[340000299,1728306648420,-1037.49,0.00040273,120]
[340000300,1728306648431,-653.17,0.00040273,120]
[340000301,1728306648442,-215.05,0.00040282,120]
[340000302,1728306648453,-2694.94,0.000403,14]
[340000303,1728306648465,-559.97,0.00040382,2]
[340000304,1728306648475,-150.0,0.00040392,7]
[340000305,1728306648486,-150.0,0.00040392,7]
[340000306,1728306648497,-150.0,0.00040392,7]
[340000307,1728306648508,-150.0,0.00040392,7]
[340000308,1728306648520,-2110.0,0.000405,2]
[340000309,1728306648531,-1000.0,0.000405,30]
[340000310,1728306648542,-500.0,0.00040547,120]
[340000311,1728306648554,-500.0,0.00040547,14]
[340000312,1728306648565,-1037.49,0.00040547,120]
[340000313,1728306648577,-653.17,0.00040547,120]
[340000314,1728306648716,-150.0,0.00040656,7]
[340000315,1728306648726,-194.0,0.000408,27]
[340000316,1728306648736,-2694.94,0.000408,14]
[340000317,1728306648746,-500.0,0.000408,120]
[340000318,1728306648755,-200.0,0.000408,120]
[340000319,1728306648765,-500.0,0.00040821,120]
[340000320,1728306648775,-500.0,0.00040821,14]
[340000321,1728306648784,-1037.49,0.00040821,120]
[340000322,1728306648793,-653.17,0.00040821,120]
[340000323,1728306648803,-105223.24318012,0.00040899,10]
[340000324,1728306648813,-354.870517,0.000409,30]
[340000325,1728306648822,-150.0,0.0004092,7]
[340000326,1728306648831,-150.0,0.00040953,7]
[340000327,1728306648840,-2376.1793692,0.00040972,2]
[340000328,1728306648850,-1338.0751517,0.00040972,2]
[340000329,1728306648859,-5157.248137,0.00040972,2]
[340000330,1728306648870,-48912.19837306,0.00041,41]
[340000331,1728306648952,-328.53229629,0.0003589,2]
[340000332,1728306648979,-171.46770371,0.0003589,2]
[340000333,1728306648988,-215.19408129,0.00036164,2]
[340000334,1728306648998,-1087.80162694,0.00041,41]
[340000335,1728306649007,-50000.0,0.00041,31]
[340000336,1728306649016,-3290.20629813,0.00041,90]
[340000337,1728306649027,-20453.58063277,0.00041,90]
[340000338,1728306649038,-316.37816481,0.00041,90]
[340000339,1728306649052,-370.82499999,0.00041,90]
[340000340,1728306649063,-945.566478,0.00041,90]
[340000341,1728306649092,-817.30654141,0.00041,90]
[340000342,1728306649104,-9149.15083065,0.00041,90]
[340000343,1728306649115,-30396.06393493,0.00041,90]
[340000344,1728306649127,-7864.076,0.00041,90]
[340000345,1728306649169,-493.0,0.0004,5]
[340000346,1728306649179,-203333.60115217,0.00041,90]
[340000347,1728306649190,-3461.90764,0.00041,90]
[340000348,1728306649204,-179042.49801171,0.00041,90]
[340000349,1728306649215,-151395.47399998,0.00041,90]
[340000364,1728306815360,163.33,0.00010959,2]
[340000365,1728307337617,166.32,0.00010959,2]
[340000366,1728307508787,4313560.8920716,0.00011,2]
[340000367,1728307529654,49937.47344701,0.000101,2]
[340000368,1728307529677,60554.28535026,0.000101,2]
[340000380,1728307686821,7573.26664586,0.00013,4]
[340000406,1728307831417,-973.80468982,0.000108,2]
[340000407,1728307831427,-164.70778112,0.000109,2]
[340000408,1728307831436,-3842.37304266,0.000109,2]
[340000409,1728307831450,-1563.1042954,0.000109,2]
[340000410,1728307831484,-984.80473627,0.000109,2]
[340000411,1728307831495,-1065.6601475,0.000109,2]
[340000412,1728307831541,-6374.42799335,0.000109,2]
[340000413,1728307831551,-153.72317359,0.000109,2]
[340000414,1728307831560,-5102.58200836,0.000109,2]
[340000419,1728307837467,-322.65841924,0.000109,2]
[340000420,1728307837477,-372.8196,0.000109,2]
[340000421,1728307837489,-757.88789469,0.000109,2]
[340000422,1728307837498,-592.32701707,0.000109,2]
[340000423,1728307837510,-3030.34386961,0.000109,2]
[340000424,1728307837522,-161.00986191,0.000109,2]
[340000425,1728307837531,-343.79982692,0.000109,2]
[340000426,1728307837541,-467.1564,0.000109,2]
[340000427,1728307837550,-361.96771202,0.000109,2]
[340000428,1728307837559,-500.0,0.00010973,2]
[340000429,1728307837569,-500.0,0.00010973,2]
[340000430,1728307837578,-500.0,0.00010973,2]
[340000431,1728307837588,-500.0,0.00010973,2]
[340000432,1728307837597,-178.59057591,0.00010997,2]
[340000433,1728307837607,-172.20665462,0.00010999,2]
[340000434,1728307837616,-36917.36814778,0.00011,2]
[340000435,1728307837692,-1361562.16503672,0.00011,2]
[340000436,1728307837704,-1147347.01545081,0.00011,2]
[340000444,1728307839735,-3473.04414475,0.00011,2]
[340000477,1728307842674,-3106747.42225711,0.00011,2]
[340000478,1728307842684,-250.0,0.00011,2]
[340000479,1728307842693,-1085187.23327389,0.00011,2]
[340000519,1728307845483,-50453.77125927,0.00011,2]
[340000520,1728307845647,-650.94117855,0.00011,2]
[340000521,1728307845658,-543.237472,0.00011,2]
[340000523,1728308454379,600.0,0.000103,3]
[340000524,1728308456516,1200.0,0.000104,3]
[340000525,1728308458631,1900.0,0.000105,3]
[340000526,1728308460728,2500.0,0.000106,3]
[340000527,1728308462830,503.70649937,0.000107,3]
[340000528,1728308462854,2596.29350063,0.000107,3]
[340000529,1728308464945,600.0,0.000108,3]
[340000530,1728308467046,600.0,0.000109,3]
[340000557,1728309031511,-250.04401004,0.0001089,2]
[340000559,1728309031520,-1000.0,0.000109,2]
[340000560,1728309031530,-158.1635669,0.000109,2]
[340000562,1728309031539,-16934.5182,0.000109,2]
[340000563,1728309031547,-44851.8038398,0.000109,2]
[340000564,1728309031682,-765.02499806,0.000109,2]
[340000565,1728309031742,-11418.1991888,0.000109,2]
[340000566,1728309031757,-2050.03789332,0.000109,2]
[340000624,1728309037660,-20564.79518002,0.000109,2]
[340000625,1728309037669,-154.46774324,0.000109,2]
[340000626,1728309037678,-789.5587,0.000109,2]
[340000627,1728309037688,-4853.1962,0.000109,2]
[340000628,1728309037697,-1709.1038,0.000109,2]
[340000629,1728309037706,-6346.92067129,0.000109,2]
[340000630,1728309037716,-166.39047608,0.000109,2]
[340000631,1728309037725,-2500.0,0.000109,2]
[340000632,1728309037735,-464.97954782,0.000109,2]
[340000633,1728309037743,-164.38861933,0.000109,2]
[340000634,1728309037753,-8323.58421577,0.000109,2]
[340000635,1728309037764,-463.4202856,0.000109,2]
[340000636,1728309037775,-195.73238784,0.000109,2]
[340000637,1728309037784,-164.2588625,0.000109,2]
[340000638,1728309037793,-161.28,0.00010959,2]
[340000639,1728309037802,-152.99,0.00010959,2]
[340000640,1728309037811,-522.11,0.00010959,2]
[340000641,1728309037819,-197.77,0.00010959,2]
[340000642,1728309037829,-164.81,0.00010959,2]
[340000643,1728309037837,-824.05,0.00010959,2]
[340000644,1728309037846,-171.49640304,0.00010973,2]
[340000645,1728309037855,-500.0,0.00010973,2]
[340000646,1728309037864,-199.15185174,0.0001099,2]
[340000647,1728309037872,-6246.68743827,0.00010997,2]
[340000648,1728309037881,-361.60822536,0.00010999,2]
[340000649,1728309037891,-748070.36867464,0.00011,2]
[340000650,1728309037918,-2570.50200004,0.00011,2]
[340000651,1728309037929,-3413.85644702,0.00011,2]
[340000652,1728309037939,-4032.83102732,0.00011,2]
[340000653,1728309037950,-58747.04437165,0.00011,2]
[340000654,1728309037961,-749.86877271,0.00011,2]
[340000655,1728309037971,-1379.86572107,0.00011,2]
[340000656,1728309037982,-22403.32009726,0.00011,2]
[340000657,1728309037993,-44376.71706199,0.00011,2]
[340000662,1728309039712,-500.05676569,0.00011,2]
[340000663,1728309039732,-1567.1639731,0.00011,2]
[340000664,1728309039850,-5666.17967787,0.00011,2]
[340000665,1728309039862,-27089.17785513,0.00011,2]
[340000666,1728309039873,-1518.24201,0.00011,2]
[340000667,1728309039885,-1363.68834929,0.00011,2]
[340000668,1728309039898,-2023.404,0.00011,2]
[340000674,1728309042568,-1500.0,0.00011,2]
[340000675,1728309042579,-19578.9643789,0.00011,2]
[340000676,1728309042590,-5299.99999998,0.00011,2]
[340000677,1728309042619,-3240783.1085256,0.00011,2]
[340000680,1728309042678,-647.03681964,0.00011,2]
[340000681,1728309042689,-352.96318036,0.00011,2]
[340000682,1728309042791,-1042.42374494,0.00011,2]
[340000683,1728309042911,-43422.4606353,0.00011,2]
[340000684,1728309042925,-28037.08867211,0.00011,2]
[340000685,1728309042936,-36320.53279676,0.00011,2]
[340000686,1728309042947,-10512.0,0.00011,2]
[340000690,1728309045558,-1186.6985,0.000109,2]
[340000691,1728309045568,-81352.0719699,0.00011,2]
[340000694,1728309045635,-1295.87497203,0.00011,2]
[340000695,1728309045646,-6336.0,0.00011,2]
[340000696,1728309045670,-430.18684934,0.00011,2]
[340000697,1728309045684,-2052.06145871,0.00011,2]
[340000698,1728309045695,-3199.18501937,0.00011,2]
[340000699,1728309045706,-1241.4893366,0.00011,2]
[340000700,1728309045717,-506.28464956,0.00011,2]
[340000701,1728309045727,-7533.79919372,0.00011,2]
[340000702,1728309045738,-1929.87867776,0.00011,2]
[340000703,1728309045750,-609.53823585,0.00011,2]
[340000704,1728309045760,-27526.82046743,0.00011,2]
[340000705,1728309045771,-3518.04920049,0.00011,2]
[340000706,1728309045782,-1580.85761632,0.00011,2]
[340000707,1728309045793,-1421.4756318,0.00011,2]
[340000708,1728309045804,-5143.26,0.00011,2]
[340000709,1728309045815,-475.22177458,0.00011,2]
[340000710,1728309045827,-2528.45250539,0.00011,2]
[340000711,1728309045838,-79074.49128101,0.00011,2]
[340000712,1728309045850,-11753.76194839,0.00011,2]
[340000713,1728309045862,-663.02749647,0.00011,2]
[340000714,1728309045873,-59208.35310452,0.00011,2]
[340000715,1728309045883,-3701.92517562,0.00011,2]
[340000716,1728309045894,-16226.84102035,0.00011,2]
[340000717,1728309045915,-553.56974129,0.00011,2]
[340000718,1728309045927,-716.16506598,0.00011,2]
[340000719,1728309045939,-33666.64341342,0.00011,2]
[340000720,1728309045950,-1429.02069593,0.00011,2]
[340000721,1728309045961,-353.68141749,0.00011,2]
[340000723,1728309045972,-4412.73504362,0.00011,2]
[340000725,1728309045984,-3007.05789495,0.00011,2]
[340000726,1728309045996,-11258.983078,0.00011,2]
[340000727,1728309046009,-500.0,0.00011,2]
[340000728,1728309046021,-443.16353036,0.00011,2]
[340000729,1728309105790,-30400.9209,0.000109,2]
[340000730,1728309105812,-169599.0791,0.000109,2]
[340000731,1728309366473,-1289.6796,0.0001079,2]
[340000732,1728309366495,-384.28,0.00010867,2]
[340000733,1728309366515,-718.2721457,0.0001089,2]
[340000734,1728309366535,-150.0,0.00010899,2]
[340000735,1728309366557,-300.0,0.00010899,2]
[340000736,1728309366578,-75400.9209,0.000109,2]
[340000737,1728309366599,-170.83914255,0.000109,2]